[Event "WYCC 2018 O16"]
[Site "Halkidiki"]
[Date "2018.10.21"]
[Round "3"]
[White "Bekturov, Tamerlan"]
[Black "Aravena Navarro, Alexis Andres"]
[Result "1-0"]
[ECO "A57"]
[WhiteElo "2297"]
[BlackElo "1970"]
[Annotator "NA"]
[PlyCount "77"]
[EventDate "2018.10.20"]
[EventType "swiss"]
[EventCountry "GRE"]
[SourceTitle "playchess.com"]
[Source "ChessBase"]
[SourceQuality "1"]
[TimeControl "40/5400+30:1800+30"]

1. d4 {[%emt 0:00:00]} Nf6 {[%emt 0:00:00]} 2. c4 {[%emt 0:00:00]} c5 {[%emt 0:00:00]} 3. d5 {[%emt 0:00:27]} b5 {[%emt 0:00:04]} 4. cxb5 {[%emt 0:00:42]} a6 {[%emt 0:00:14]} 5. f3 {[%emt 0:03:13]} g6 {[%emt 0:02:42]} 6. e4 {[%emt 0:00:17]} d6 {[%emt 0:00:01]} 7. bxa6 {[%emt 0:03:44]} Bg7 {[%emt 0:00:13]} 8. Bb5+ {[%emt 0:03:22]} Bd7 {[%emt 0:06:53]} 9. Bc4 {[%emt 0:04:04]} O-O {[%emt 0:00:06]} 10. Ne2 {[%emt 0:00:06]} Nxa6 {[%emt 0:01:26]} 11. O-O $14 {[%emt 0:00:23]} Qb6 {[%emt 0:02:20]} 12. Nbc3 {[%emt 0:00:45]} Rfb8 {[%emt 0:00:33]} 13. b3 {[%emt 0:01:34]} Nb4 14. a4 {[%emt 0:03:55]} Bc8 {[%emt 0:05:33]} 15. Be3 {[%emt 0:10:15]} Nd7 {[%emt 0:07:44]} 16. Rb1 {[%emt 0:04:04]} Ba6 {[%emt 0:05:54]} 17. Bxa6 {[%emt 0:02:07]} Nxa6 {[%emt 0:02:04]} 18. Nb5 {[%emt 0:03:05]} Nb4 {[%emt 0:07:01]} 19. Qd2 {[%emt 0:06:38]} Qa5 {[%emt 0:04:30]} 20. Rfc1 {[%emt 0:00:31]} Rb7 {[%emt 0:02:18]} 21. Na3 {[%emt 0:05:09]} Rab8 {[%emt 0:16:10]} 22. Nc4 {[%emt 0:03:23]} Qd8 {[%emt 0:03:00]} 23. Nc3 {[%emt 0:00:50]} Na6 {[%emt 0:01:29]} 24. Nb5 {[%emt 0:00:18]} Ne5 {[%emt 0:03:27]} 25. Na5 {[%emt 0:03:39]} Rb6 {[%emt 0:06:19]} 26. f4 {[%emt 0:09:30]} Ng4 {[%emt 0:00:31]} 27. Nc6 {[%emt 0:01:12]} Rxc6 {[%emt 0:11:39]} 28. dxc6 {[%emt 0:00:08]} Nc7 {[%emt 0:02:30]} 29. Bxc5 {[%emt 0:05:54]} Nxb5 {[%emt 0:03:03]} 30. axb5 {[%emt 0:00:27]} Rxb5 {[%emt 0:00:29]} 31. Bd4 {[%emt 0:05:44]} e5 {[%emt 0:01:10]} 32. c7 {[%emt 0:01:20]} Qc8 {[%emt 0:00:24]} 33. Qe2 {[%emt 0:02:47]} Rb7 {[%emt 0:00:47]} 34. Qxg4 {[%emt 0:00:18]} f5 {[%emt 0:00:01]} 35. Qe2 {[%emt 0:00:31]} exd4 {[%emt 0:00:01]} 36. Qa6 {[%emt 0:00:27]} Bf8 {[%emt 0:00:56]} 37. Qxb7 {[%emt 0:00:15]} Qxb7 {[%emt 0:00:01]} 38. c8=Q {[%emt 0:00:10]} Qxe4 {[%emt 0:00:06]} 39. Re1 {[%emt 0:00:29]} 1-0

[Event "WYCC 2018 O16"]
[Site "Halkidiki"]
[Date "2018.10.21"]
[Round "3"]
[White "Faerber, David"]
[Black "Pena Cifuentes, Tomas Alberto"]
[Result "1-0"]
[ECO "C04"]
[WhiteElo "2279"]
[BlackElo "1952"]
[Annotator "NA"]
[PlyCount "47"]
[EventDate "2018.10.20"]
[EventType "swiss"]
[EventCountry "GRE"]
[SourceTitle "playchess.com"]
[Source "ChessBase"]
[SourceQuality "1"]
[TimeControl "40/5400+30:1800+30"]

1. e4 {[%emt 0:00:00]} e6 {[%emt 0:00:00]} 2. d4 {[%emt 0:00:00]} d5 {[%emt 0:00:00]} 3. Nd2 {[%emt 0:00:00]} Nc6 {[%emt 0:00:00]} 4. Ngf3 {[%emt 0:00:03]} Nf6 {[%emt 0:00:04]} 5. e5 {[%emt 0:00:08]} Nd7 {[%emt 0:00:08]} 6. Bd3 {[%emt 0:00:08]} f6 {[%emt 0:00:14]} 7. Ng5 {[%emt 0:00:10]} Ndxe5 {[%emt 0:00:17] C04: Französische Verteidigung (Tarrasch-Variante)} 8. dxe5 {[%emt 0:00:08]} fxg5 {[%emt 0:00:07]} 9. Qh5+ {[%emt 0:00:10]} g6 {[%emt 0:00:06]} (9... Kd7 10. Nf3 Nb4 11. Bxg5 Nxd3+ 12. cxd3 Qe8 13. Qh4 Qg6 14. O-O Qxd3 15. Rfd1 {½-½ (25) Kovalev,V (2639)-Stupak,K (2565) Minsk 2018}) 10. Bxg6+ Kd7 11. c4 {[%emt 0:00:23]} Nxe5 {[%emt 0:10:31]} 12. Bc2 {[%emt 0:00:37]} Qf6 {[%emt 0:05:59]} 13. O-O {[%emt 0:00:20]} c6 {[%emt 0:10:44]} 14. cxd5 {[%emt 0:00:18]} exd5 {[%emt 0:00:44]} 15. f4 {[%emt 0:00:09]} gxf4 {[%emt 0:03:27]} 16. Ne4 $146 {[%emt 0:00:12]} dxe4 {[%emt 0:09:25]} 17. Bxf4 {[%emt 0:00:09]} Bg7 {[%emt 0:00:05]} 18. Rad1+ {[%emt 0:05:30]} Kc7 {[%emt 0:00:49]} 19. Bg3 {[%emt 0:03:03]} Qe6 {[%emt 0:07:53]} 20. Rf7+ {[%emt 0:00:48]} Kb6 {[%emt 0:00:05]} 21. Rxg7 {[%emt 0:00:38]} Re8 {[%emt 0:03:23]} 22. Bb3 {[%emt 0:01:08]} Qf6 {[%emt 0:08:46]} 23. Qxe8 $18 {[%emt 0:00:16]} Qxg7 {[%emt 0:00:47]} 24. Bxe5 {[%emt 0:00:51]} 1-0

[Event "WYCC 2018 O16"]
[Site "Halkidiki"]
[Date "2018.10.21"]
[Round "3"]
[White "De Waele, Warre"]
[Black "Lin, Kerry"]
[Result "1-0"]
[ECO "A06"]
[WhiteElo "2272"]
[BlackElo "1931"]
[Annotator "NA"]
[PlyCount "55"]
[EventDate "2018.10.20"]
[EventType "swiss"]
[EventCountry "GRE"]
[SourceTitle "playchess.com"]
[Source "ChessBase"]
[SourceQuality "1"]
[TimeControl "40/5400+30:1800+30"]

1. Nf3 {[%emt 0:00:00]} d5 {[%emt 0:00:00]} 2. c4 {[%emt 0:00:00]} c6 {[%emt 0:00:00]} 3. e3 {[%emt 0:00:53]} Nf6 {[%emt 0:00:48]} 4. Nc3 {[%emt 0:00:06]} a6 {[%emt 0:05:33]} 5. Qc2 {[%emt 0:04:01]} e6 {[%emt 0:04:27]} 6. d4 {[%emt 0:00:34]} Be7 {[%emt 0:00:41] D45: Semi-Slav: 5 e3} (6... dxc4 7. Bxc4 b5 8. Be2 Bb7 9. a3 Nbd7 10. b4 a5 11. Rb1 axb4 12. axb4 Nd5 13. Nxd5 exd5 14. O-O Nf6 15. Ne5 {1-0 (39) So,W (2780)-Vallejo Pons,F (2707) Leon 2018}) 7. Bd3 {[%emt 0:02:43]} Nbd7 {[%emt 0:01:53]} 8. b3 {[%emt 0:00:27]} b5 {[%emt 0:04:43] LiveBook: 23 Games} 9. e4 {[%emt 0:09:19]} dxe4 $146 {[%emt 0:05:19]} ({Predecessor:} 9... bxc4 10. bxc4 dxe4 11. Nxe4 c5 12. O-O O-O 13. Ne5 cxd4 14. Nc6 Qe8 15. Bf4 e5 16. Nxe5 {1-0 (31) Leitao,R (2623)-Borges Matos,J (2453) San Cristobal 2012}) 10. Nxe4 {[%emt 0:00:14]} Bb7 {[%emt 0:03:17]} 11. O-O {[%emt 0:04:11]} Rc8 {[%emt 0:10:41]} (11... bxc4 $11 {remains equal.} 12. bxc4 c5) 12. c5 {[%emt 0:00:32]} Nxe4 {[%emt 0:00:36]} 13. Bxe4 {[%emt 0:00:10]} Nf6 {[%emt 0:00:26]} 14. Bd3 {[%emt 0:00:35]} O-O {[%emt 0:02:09]} 15. Bf4 {[%emt 0:02:25]} g6 {[%emt 0:08:02]} 16. Bh6 {[%emt 0:02:57]} Re8 {[%emt 0:00:16]} 17. Rfe1 $16 {[%emt 0:00:25]} Nd5 {[%emt 0:05:14]} 18. Qd2 {[%emt 0:08:16]} Rc7 {[%emt 0:06:35]} 19. Ne5 {[%emt 0:02:10]} Bf6 {[%emt 0:04:04]} 20. g3 {[%emt 0:01:42]} Bh8 {[%emt 0:04:18]} 21. Be4 {[%emt 0:01:37]} Bc8 {[%emt 0:08:18]} 22. h4 {[%emt 0:03:37]} Ne7 {[%emt 0:04:47]} 23. h5 {[%emt 0:05:25]} Nf5 {[%emt 0:06:04]} 24. Nxc6 {[%emt 0:06:14]} Rxc6 {[%emt 0:05:15]} 25. Bxc6 {[%emt 0:00:10]} Nxd4 {[%emt 0:00:48]} 26. Bg2 {[%emt 0:00:14]} Qc7 {[%emt 0:00:58]} 27. Rac1 {[%emt 0:01:53]} e5 {[%emt 0:03:28]} 28. Qxd4 {[%emt 0:00:09]} 1-0

[Event "WYCC 2018 O16"]
[Site "Halkidiki"]
[Date "2018.10.21"]
[Round "3"]
[White "Semjonovs, Ilja"]
[Black "Lianes Garcia, Marcos"]
[Result "1/2-1/2"]
[ECO "C70"]
[WhiteElo "2245"]
[BlackElo "2376"]
[Annotator "NA"]
[PlyCount "46"]
[EventDate "2018.10.20"]
[EventType "swiss"]
[EventCountry "GRE"]
[SourceTitle "playchess.com"]
[Source "ChessBase"]
[SourceQuality "1"]
[TimeControl "40/5400+30:1800+30"]

1. e4 {[%emt 0:01:46]} e5 {[%emt 0:00:27]} 2. Nf3 {[%emt 0:00:30]} Nc6 {[%emt 0:00:50]} 3. Bb5 {[%emt 0:00:32]} a6 {[%emt 0:00:52]} 4. Ba4 {[%emt 0:00:07]} Nge7 {[%emt 0:01:10]} 5. O-O {[%emt 0:04:32]} Ng6 {[%emt 0:02:53]} 6. d4 {[%emt 0:06:06]} exd4 {[%emt 0:16:46]} 7. Bxc6 {[%emt 0:04:45]} dxc6 {[%emt 0:01:42]} 8. Qxd4 {[%emt 0:02:28]} Qxd4 {[%emt 0:03:47]} 9. Nxd4 {[%emt 0:00:06]} Bd7 {[%emt 0:03:27]} 10. f4 {[%emt 0:07:43]} O-O-O {[%emt 0:12:27]} 11. Be3 {[%emt 0:02:46]} Bc5 $15 {[%emt 0:03:06]} 12. Nd2 {[%emt 0:09:40]} Rhe8 {[%emt 0:02:31]} 13. c3 {[%emt 0:03:40]} Bxd4 {[%emt 0:14:52]} 14. Bxd4 {[%emt 0:05:15]} c5 {[%emt 0:03:48]} 15. Bxc5 {[%emt 0:10:42]} Bc6 {[%emt 0:10:48]} 16. Bd4 {[%emt 0:04:51]} Bxe4 {[%emt 0:02:55]} 17. Nxe4 {[%emt 0:04:16]} Rxe4 {[%emt 0:00:05]} 18. g3 {[%emt 0:00:05]} f6 {[%emt 0:01:52]} 19. Rae1 {[%emt 0:02:20]} Rde8 {[%emt 0:00:42]} 20. Rxe4 {[%emt 0:00:17]} Rxe4 {[%emt 0:00:02]} 21. Kf2 {[%emt 0:00:11]} Ne7 {[%emt 0:02:14]} 22. Kf3 {[%emt 0:02:35]} Re6 {[%emt 0:00:08]} 23. g4 {[%emt 0:00:38]} g6 {[%emt 0:01:28]} 1/2-1/2

[Event "WYCC 2018 O16"]
[Site "Halkidiki"]
[Date "2018.10.21"]
[Round "3"]
[White "Wang, Yanbin"]
[Black "Stoleriu, George"]
[Result "1-0"]
[ECO "A09"]
[WhiteElo "2220"]
[BlackElo "2362"]
[Annotator "NA"]
[PlyCount "53"]
[EventDate "2018.10.20"]
[EventType "swiss"]
[EventCountry "GRE"]
[SourceTitle "playchess.com"]
[Source "ChessBase"]
[SourceQuality "1"]
[TimeControl "40/5400+30:1800+30"]

1. Nf3 {[%emt 0:00:00]} d5 {[%emt 0:00:00]} 2. c4 {[%emt 0:00:05]} d4 {[%emt 0:02:34]} 3. e3 {[%emt 0:00:53]} Nc6 {[%emt 0:01:17]} 4. exd4 {[%emt 0:01:35]} Nxd4 {[%emt 0:00:05]} 5. Nxd4 {[%emt 0:00:23]} Qxd4 {[%emt 0:00:05]} 6. Nc3 {[%emt 0:00:16]} c6 {[%emt 0:01:55]} 7. d3 {[%emt 0:00:42]} Nh6 {[%emt 0:01:43]} 8. Be3 {[%emt 0:01:00]} Qd8 {[%emt 0:00:12]} 9. d4 {[%emt 0:02:46]} Nf5 {[%emt 0:01:08]} 10. Qd2 {[%emt 0:00:53]} g6 {[%emt 0:00:47]} 11. Be2 {[%emt 0:02:37]} Bg7 {[%emt 0:01:02]} 12. O-O-O {[%emt 0:02:26]} O-O {[%emt 0:01:38]} 13. h4 {[%emt 0:02:15]} Nxe3 {[%emt 0:16:10]} 14. Qxe3 {[%emt 0:04:03]} Re8 {[%emt 0:04:19]} 15. h5 {[%emt 0:00:44]} Qa5 $11 {[%emt 0:00:46]} 16. f4 {[%emt 0:04:59]} Rb8 {[%emt 0:02:32]} 17. g4 {[%emt 0:06:10]} b5 {[%emt 0:02:13]} 18. hxg6 {[%emt 0:00:11]} hxg6 {[%emt 0:00:52]} 19. f5 {[%emt 0:01:47]} bxc4 {[%emt 0:54:31]} 20. fxg6 {[%emt 0:04:04]} fxg6 {[%emt 0:00:05]} 21. Bxc4+ {[%emt 0:00:25]} e6 {[%emt 0:00:04]} 22. Qh3 {[%emt 0:00:44]} Kf7 {[%emt 0:03:40]} 23. Rdf1+ {[%emt 0:02:58]} Ke7 {[%emt 0:00:11]} 24. Qh7 {[%emt 0:00:14]} Qg5+ {[%emt 0:02:43]} 25. Kb1 {[%emt 0:00:19]} Qd2 {[%emt 0:01:21]} 26. Qxg7+ {[%emt 0:00:06]} Kd8 {[%emt 0:00:04]} 27. Qf6+ {[%emt 0:00:20]} 1-0

[Event "WYCC 2018 O16"]
[Site "Halkidiki"]
[Date "2018.10.21"]
[Round "3"]
[White "Van Malder, Dries"]
[Black "Szpar, Milosz"]
[Result "0-1"]
[ECO "E15"]
[WhiteElo "2150"]
[BlackElo "2328"]
[Annotator "NA"]
[PlyCount "52"]
[EventDate "2018.10.20"]
[EventType "swiss"]
[EventCountry "GRE"]
[SourceTitle "playchess.com"]
[Source "ChessBase"]
[SourceQuality "1"]
[TimeControl "40/5400+30:1800+30"]

1. d4 {[%emt 0:00:00]} Nf6 {[%emt 0:00:00]} 2. c4 {[%emt 0:00:00]} e6 {[%emt 0:00:00]} 3. Nf3 {[%emt 0:00:00]} b6 {[%emt 0:00:38]} 4. g3 {[%emt 0:00:02]} Ba6 {[%emt 0:00:24]} 5. Qa4 {[%emt 0:01:52]} c5 {[%emt 0:05:00]} 6. Bg2 {[%emt 0:03:16]} Bb7 {[%emt 0:01:10]} 7. O-O {[%emt 0:05:49]} Be7 {[%emt 0:08:43] LiveBook: 73 Games} 8. Nc3 {[%emt 0:02:54]} cxd4 {[%emt 0:07:16]} 9. Nxd4 {[%emt 0:00:14]} Bxg2 {[%emt 0:01:59]} 10. Kxg2 {[%emt 0:00:25]} O-O {[%emt 0:05:07]} 11. Rd1 {[%emt 0:02:04]} Qc7 {[%emt 0:01:25] E15: Damenindisch (Hauptfortsetzung, Abweichungen)} (11... Qc8 12. Bf4 a6 13. Nf3 Nc6 14. Kg1 d5 15. Rac1 dxc4 16. Qxc4 Na5 17. Qa4 Qb7 18. Bd6 Bxd6 19. Rxd6 Rac8 {½-½ (59) Laznicka,V (2683)-Bologan,V (2734) Istanbul 2012}) 12. Ndb5 {[%emt 0:19:12]} Qc6+ {[%emt 0:03:06]} 13. Kg1 {[%emt 0:00:41]} Rc8 {[%emt 0:03:11]} 14. b3 {[%emt 0:09:16]} a6 $1 $146 {[%emt 0:01:55]} ({Vorgänger:} 14... d6 15. Ba3 Ne8 16. Rac1 Nd7 17. Bb4 a6 18. Nd4 Qxa4 19. Nxa4 Rab8 {½-½ (68) Plamenov Ribarov,P (2038)-Vives Bellber,T (1964) Barcelona 2012}) 15. Nd4 {[%emt 0:00:40]} Qb7 {[%emt 0:01:33]} 16. Rd3 $17 {[%emt 0:08:02]} d6 {[%emt 0:19:40]} 17. Ba3 {[%emt 0:08:14]} Nbd7 {[%emt 0:00:50]} 18. Rad1 {[%emt 0:02:04]} Ne5 {[%emt 0:02:38]} 19. R3d2 {[%emt 0:01:39]} b5 {[%emt 0:03:15]} 20. Qb4 {[%emt 0:01:09]} Bf8 {[%emt 0:04:16]} 21. Qa5 {[%emt 0:17:23]} bxc4 {[%emt 0:02:08]} 22. Na4 {[%emt 0:01:43]} cxb3 {[%emt 0:05:06]} 23. axb3 {[%emt 0:01:19]} Rab8 {[%emt 0:01:04]} 24. Ra2 {[%emt 0:04:02]} h5 {[%emt 0:02:46]} 25. h4 {[%emt 0:01:10]} Be7 {[%emt 0:02:07]} 26. Rad2 {[%emt 0:01:17]} Bd8 {[%emt 0:00:40]} 0-1

[Event "WYCC 2018 O16"]
[Site "Halkidiki"]
[Date "2018.10.21"]
[Round "3"]
[White "Kovacsy, Barnabas"]
[Black "Zhalmakhanov, Ramazan"]
[Result "1/2-1/2"]
[ECO "B56"]
[WhiteElo "2104"]
[BlackElo "2316"]
[Annotator "NA"]
[PlyCount "134"]
[EventDate "2018.10.20"]
[EventType "swiss"]
[EventCountry "GRE"]
[SourceTitle "playchess.com"]
[Source "ChessBase"]
[SourceQuality "1"]
[TimeControl "40/5400+30:1800+30"]

1. e4 {[%emt 0:00:00]} c5 {[%emt 0:00:05]} 2. Nf3 {[%emt 0:00:00]} d6 {[%emt 0:00:07]} 3. d4 {[%emt 0:00:00]} cxd4 {[%emt 0:00:12]} 4. Nxd4 {[%emt 0:00:00]} Nf6 {[%emt 0:00:08]} 5. Nc3 {[%emt 0:00:00]} Bd7 {[%emt 0:00:06]} 6. Bg5 {[%emt 0:00:09]} e6 {[%emt 0:00:07]} 7. Ndb5 {[%emt 0:00:10] B56: Classical Sicilian: Unusual Lines} (7. Qd2 h6 8. Bxf6 Qxf6 9. Ndb5 Bxb5 10. Bxb5+ Nc6 11. O-O-O a6 12. Bxc6+ bxc6 13. f4 Qd8 14. g4 Qa5 15. h4 {½-½ (42) Leko,P (2714)-Li,C (2748) Szeged 2015 CBM 168 [Fischer,J]}) 7... Bxb5 {[%emt 0:01:15]} 8. Bxb5+ {[%emt 0:03:14]} Nc6 {[%emt 0:00:07]} 9. O-O {[%emt 0:03:57]} Be7 {[%emt 0:00:08]} 10. Kh1 $146 {[%emt 0:02:10]} ({Predecessor:} 10. Be3 a6 11. Be2 b5 12. a3 Qc7 13. f4 Na5 14. Kh1 Nc4 {½-½ (41) Oliveira,M (1978)-Brankov,K (1903) Belgrade 2013}) 10... O-O {[%emt 0:00:32]} 11. f4 {[%emt 0:02:01]} h6 {[%emt 0:06:07]} 12. Bh4 {[%emt 0:05:03]} Rc8 {[%emt 0:19:35]} 13. Qe1 {[%emt 0:07:47]} Nd7 {[%emt 0:07:25]} 14. Bxe7 {[%emt 0:02:01]} Qxe7 {[%emt 0:00:11]} 15. Rd1 {[%emt 0:00:55]} a6 {[%emt 0:01:48]} 16. Bd3 {[%emt 0:02:27]} Rcd8 {[%emt 0:05:56]} 17. Qg3 {[%emt 0:02:12]} Kh8 {[%emt 0:01:13]} 18. Qh3 {[%emt 0:03:42]} Nc5 {[%emt 0:04:39]} 19. g4 {[%emt 0:03:58]} f6 {[%emt 0:04:49]} 20. Rg1 {[%emt 0:03:15]} b5 {[%emt 0:02:40]} 21. g5 {[%emt 0:04:06]} fxg5 {[%emt 0:01:10]} 22. fxg5 {[%emt 0:00:09]} Ne5 {[%emt 0:00:22]} 23. gxh6 {[%emt 0:00:25]} g6 {[%emt 0:00:04]} 24. Rdf1 {[%emt 0:01:18]} Kh7 {[%emt 0:01:45]} 25. Ne2 {[%emt 0:06:50]} b4 {[%emt 0:12:30]} 26. Nf4 {[%emt 0:06:05]} Rf7 {[%emt 0:01:49]} 27. Qg3 {[%emt 0:03:03]} Rg8 {[%emt 0:08:31]} 28. Nh3 {[%emt 0:01:41]} Rxf1 {[%emt 0:00:55]} 29. Ng5+ {[%emt 0:01:35]} Kh8 {[%emt 0:00:46]} 30. Rxf1 {[%emt 0:01:06]} Rf8 {[%emt 0:00:07]} 31. Rf4 {[%emt 0:03:15]} Rf6 {[%emt 0:03:25]} 32. h4 {[%emt 0:08:24]} Qf8 {[%emt 0:02:59]} 33. Rxf6 {[%emt 0:00:05]} Qxf6 {[%emt 0:00:02]} 34. Kg2 {[%emt 0:00:47]} a5 {[%emt 0:01:54]} 35. Bb5 {[%emt 0:04:09]} Qf8 {[%emt 0:03:46]} 36. a3 {[%emt 0:03:52]} bxa3 {[%emt 0:04:43]} 37. bxa3 {[%emt 0:00:22]} Qxh6 {[%emt 0:03:26]} 38. Qxe5+ {[%emt 0:07:17]} dxe5 {[%emt 0:00:06]} 39. Nf7+ {[%emt 0:00:04]} Kg7 {[%emt 0:00:02]} 40. Nxh6 {[%emt 0:00:00]} Kxh6 {[%emt 0:00:00]} 41. Bc6 {[%emt 0:00:49]} g5 {[%emt 0:04:21]} 42. hxg5+ {[%emt 0:01:12]} Kxg5 {[%emt 0:00:02]} 43. Kg3 {[%emt 0:00:11]} Kf6 {[%emt 0:00:42]} 44. Kf3 {[%emt 0:00:52]} Ke7 {[%emt 0:00:09]} 45. Ke3 {[%emt 0:00:40]} Kd6 {[%emt 0:00:04]} 46. Bb5 {[%emt 0:01:01]} Nb7 {[%emt 0:02:35]} 47. Bc4 {[%emt 0:03:40]} Nd8 {[%emt 0:01:38]} 48. Kd3 {[%emt 0:00:54]} Nc6 {[%emt 0:00:25]} 49. Bb3 {[%emt 0:02:49]} Nd4 {[%emt 0:02:32]} 50. Kc4 {[%emt 0:01:38]} Kc6 {[%emt 0:02:10]} 51. Ba4+ {[%emt 0:00:44]} Kb6 {[%emt 0:00:03]} 52. c3 {[%emt 0:02:51]} Nf3 {[%emt 0:00:50]} 53. Bc2 {[%emt 0:02:18]} Ng5 {[%emt 0:00:26]} 54. Bb1 {[%emt 0:02:47]} Nf7 {[%emt 0:00:15]} 55. Bd3 {[%emt 0:00:19]} Nd6+ {[%emt 0:00:05]} 56. Kb3 {[%emt 0:00:07]} Nb7 {[%emt 0:02:02]} 57. Kc4 {[%emt 0:01:32]} Kc6 {[%emt 0:00:15]} 58. Bc2 {[%emt 0:02:05]} Nc5 {[%emt 0:00:16]} 59. Bd3 {[%emt 0:00:43]} Nd7 {[%emt 0:01:43]} 60. Kb3 {[%emt 0:04:00]} Nb6 {[%emt 0:00:55]} 61. Bc4 {[%emt 0:04:16]} Kd6 {[%emt 0:00:42]} 62. Bb5 {[%emt 0:01:10]} Kc5 {[%emt 0:00:08]} 63. Bd3 {[%emt 0:00:03]} Nd7 {[%emt 0:02:19]} 64. Ka4 {[%emt 0:00:52]} Kb6 {[%emt 0:00:02]} 65. Kb3 {[%emt 0:00:07]} Nc5+ {[%emt 0:00:33]} 66. Kc4 {[%emt 0:00:13]} Nd7 {[%emt 0:01:51]} 67. Bc2 {[%emt 0:00:29]} Nc5 $11 {[%emt 0:02:34]} 1/2-1/2

[Event "WYCC 2018 O16"]
[Site "Halkidiki"]
[Date "2018.10.21"]
[Round "3"]
[White "Zenelaj, Samuel"]
[Black "Milosevic, Milos"]
[Result "0-1"]
[ECO "A16"]
[WhiteElo "1952"]
[BlackElo "2306"]
[Annotator "NA"]
[PlyCount "92"]
[EventDate "2018.10.20"]
[EventType "swiss"]
[EventCountry "GRE"]
[SourceTitle "playchess.com"]
[Source "ChessBase"]
[SourceQuality "1"]
[TimeControl "40/5400+30:1800+30"]

1. c4 {[%emt 0:00:00]} Nf6 {[%emt 0:00:00]} 2. Nc3 {[%emt 0:00:00]} g6 {[%emt 0:00:00]} 3. g3 {[%emt 0:00:00]} Bg7 {[%emt 0:00:00]} 4. Bg2 {[%emt 0:00:00]} O-O {[%emt 0:00:00] LiveBook: 4721 Games} 5. e3 {[%emt 0:00:19]} e5 {[%emt 0:01:25]} 6. Nge2 {[%emt 0:00:29]} Nc6 {[%emt 0:00:30]} 7. O-O d6 8. d3 {[%emt 0:01:00]} Be6 {[%emt 0:00:45]} 9. Nd5 {[%emt 0:01:53]} Qd7 {[%emt 0:04:37]} 10. a3 {[%emt 0:04:29] A25: English Opening vs King's Indian with ...Nc6 but without early d3} (10. Nec3 Ne8 11. f4 f5 12. Qa4 Kh8 13. Bd2 Nd8 14. Qxd7 Bxd7 15. Ne2 c6 16. Ndc3 Ne6 17. b4 a6 18. Rab1 {0-1 (38) Ivanchuk,V (2726)-Mchedlishvili,M (2603) Riadh 2017}) 10... Bh3 {[%emt 0:02:05]} 11. Nec3 {[%emt 0:03:47]} Nxd5 $146 {[%emt 0:01:16]} ({Predecessor:} 11... Bxg2 12. Kxg2 Ne8 13. b4 f5 14. Bb2 Nd8 15. b5 c6 {0-1 (31) Iman S,O (2340)-Wu,S (2435) Singapore 1997}) 12. Bxh3 {[%emt 0:03:45]} Qxh3 {[%emt 0:01:35]} 13. Nxd5 {[%emt 0:02:19]} Qd7 {[%emt 0:00:33]} 14. Rb1 {[%emt 0:07:39]} Nd8 15. b4 {[%emt 0:11:08]} c6 {[%emt 0:03:03]} 16. Nc3 {[%emt 0:00:06]} Ne6 {[%emt 0:00:23]} 17. Ne2 {[%emt 0:05:46]} d5 {[%emt 0:03:07]} 18. b5 {[%emt 0:04:00]} Rad8 $17 {[%emt 0:00:51]} 19. Qa4 {[%emt 0:07:45]} dxc4 {[%emt 0:03:06]} 20. dxc4 {[%emt 0:04:37]} Qd3 {[%emt 0:00:45]} 21. Rb2 {[%emt 0:01:09]} Ng5 {[%emt 0:00:27]} 22. f3 {[%emt 0:06:57]} e4 {[%emt 0:00:35]} 23. Nf4 {[%emt 0:00:55]} Nxf3+ {[%emt 0:07:37]} 24. Rxf3 {[%emt 0:00:14]} Qd1+ {[%emt 0:00:06]} 25. Qxd1 {[%emt 0:00:04]} Rxd1+ {[%emt 0:00:08]} 26. Rf1 {[%emt 0:00:04]} Rxc1 {[%emt 0:00:23]} 27. Rb4 {[%emt 0:02:48]} Rc3 {[%emt 0:02:09]} 28. Ra4 {[%emt 0:01:12]} Rxe3 {[%emt 0:00:36]} 29. Rxa7 {[%emt 0:00:20]} cxb5 {[%emt 0:00:43]} 30. cxb5 {[%emt 0:00:37]} Bd4 {[%emt 0:04:57]} 31. Rxb7 {[%emt 0:06:18]} Rxg3+ {[%emt 0:00:17]} 32. Kh1 {[%emt 0:00:08]} Rxa3 {[%emt 0:01:49]} 33. Re7 {[%emt 0:00:32]} Rf3 {[%emt 0:01:13]} 34. Rd1 {[%emt 0:01:19]} Rxf4 {[%emt 0:06:16]} 35. Rxd4 {[%emt 0:00:09]} Rf1+ {[%emt 0:00:48]} 36. Kg2 {[%emt 0:01:23]} Rb1 {[%emt 0:00:09]} 37. Rd5 {[%emt 0:00:49]} Rb4 {[%emt 0:02:34]} 38. Kg3 {[%emt 0:01:41]} Rc8 {[%emt 0:01:26]} 39. Kf4 {[%emt 0:01:38]} Rc1 {[%emt 0:00:59]} 40. Ke3 {[%emt 0:00:00]} Rc3+ {[%emt 0:00:00]} 41. Kd2 {[%emt 0:08:22]} Rh3 {[%emt 0:01:40]} 42. Rdd7 {[%emt 0:01:21]} Rf3 {[%emt 0:00:28]} 43. Ke2 {[%emt 0:01:35]} Rb2+ {[%emt 0:00:58]} 44. Ke1 {[%emt 0:00:26]} Rxb5 {[%emt 0:00:19]} 45. Rxe4 {[%emt 0:00:23]} Rb2 {[%emt 0:00:16]} 46. h4 {[%emt 0:01:40]} Rh3 {[%emt 0:00:19]} 0-1